bitfinex/quotes_SOLUSD_20250112
["timestamp","ask_amount","ask_price","bid_price","bid_amount"]
[1736704742486,28.72015202,190.15,190.11,23.776884]
[1736704742690,28.72015202,190.15,190.1,23.776884]
[1736704743194,8.72015202,190.14,190.1,23.776884]
[1736704744592,8.72015202,190.14,190.09,23.902374]
[1736704746209,8.72015202,190.13,190.09,23.902374]
[1736704746689,8.72015202,190.14,190.09,23.902374]
[1736704749197,8.72015202,190.14,190.06,215.1]
[1736704749407,8.72015202,190.13,190.08,8.72015202]
[1736704750408,8.72015202,190.13,190.09,23.776884]
[1736704750585,20.0,190.15,190.1,0.12549]
[1736704750785,8.72015202,190.14,190.1,0.12549]
[1736704756389,8.72015202,190.13,190.1,0.12549]
[1736704761311,8.72015202,190.13,190.08,23.776884]
[1736704761490,0.7907314,190.14,190.07,134.4]
[1736704761686,8.72015202,190.09,190.06,80.7]
[1736704762211,0.7907314,190.14,190.07,23.776884]
[1736704762418,8.72015202,190.1,190.07,23.776884]
[1736704763117,8.72015202,190.1,190.06,80.7]
[1736704763916,8.72015202,190.1,190.07,23.776884]
[1736704774323,8.72015202,190.11,190.07,23.776884]
[1736704776529,8.72015202,190.1,190.08,3.9290846]
[1736704776696,8.72015202,190.1,190.09,23.776884]
[1736704777637,8.72015202,190.1,190.07,23.776884]
[1736704777813,20.0,190.15,190.08,0.12549]
[1736704777999,0.7907314,190.17,190.09,8.72015202]
[1736704778205,8.72015202,190.15,190.09,8.72015202]
[1736704778939,8.72015202,190.15,190.11,23.776884]
[1736704780238,8.72015202,190.15,190.1,23.776884]
[1736704781659,8.72015202,190.15,190.11,3.93425937]
[1736704781861,8.72015202,190.14,190.11,3.93425937]
[1736704783154,8.72015202,190.14,190.12,3.93425937]
[1736704784049,8.72015202,190.14,190.1,23.776884]
[1736704784628,8.72015202,190.14,190.09,23.776884]
[1736704785758,8.72015202,190.14,190.1,3.93622864]
[1736704787153,8.72015202,190.14,190.11,3.93622864]
[1736704788069,8.72015202,190.14,190.12,3.93622864]
[1736704789737,8.72015202,190.14,190.09,32.49703602]
[1736704790938,8.72015202,190.14,190.08,8.72015202]
[1736704791139,8.72015202,190.14,190.11,23.776884]
[1736704792376,8.72015202,190.14,190.12,3.93580952]
[1736704793764,8.72015202,190.14,190.09,23.902374]
[1736704794761,8.72015202,190.14,190.11,23.776884]
[1736704796364,8.72015202,190.14,190.12,3.93581582]
[1736704797356,8.72015202,190.14,190.11,23.776884]
[1736704797554,8.72015202,190.14,190.09,23.902374]
[1736704798561,8.72015202,190.14,190.11,23.776884]
[1736704799468,8.72015202,190.14,190.12,3.93871631]
[1736704800170,8.6236314,190.18,190.12,3.93871631]
[1736704800171,9.51088342,190.13,190.12,3.93871631]
[1736704800362,11.14618342,190.13,190.12,3.93871631]
[1736704801162,11.14618342,190.13,190.07,3.93871631]
[1736704801163,17.76298342,190.13,190.07,3.93871631]
[1736704801461,17.76298342,190.13,190.08,23.776884]
[1736704801462,1.6353,190.13,190.08,23.776884]
[1736704801676,8.72015202,190.12,190.08,23.776884]
[1736704801846,2.4046314,190.17,190.08,104.476884]
[1736704802047,8.72015202,190.15,190.1,23.776884]
[1736704802646,1.6139,190.21,190.12,23.776884]
[1736704802854,8.72015202,190.18,190.13,0.12549]
[1736704803867,8.72015202,190.17,190.12,23.776884]
[1736704804171,8.72015202,190.15,190.12,23.776884]
[1736704804376,8.72015202,190.14,190.12,23.776884]
[1736704805260,8.72015202,190.13,190.09,0.12549]
[1736704805465,8.72015202,190.13,190.09,23.902374]
[1736704806085,8.72015202,190.12,190.09,23.902374]
[1736704806255,35.67133948,190.2,190.09,23.776884]
[1736704806256,8.72015202,190.11,190.09,23.776884]
[1736704806456,8.72015202,190.1,190.09,23.776884]
[1736704807258,8.72015202,190.1,190.04,215.1]
[1736704807479,8.72015202,190.09,190.04,215.1]
[1736704807682,8.72015202,190.1,190.05,239.002374]
[1736704808056,8.72015202,190.1,190.05,215.22549]
[1736704808458,8.72015202,190.1,190.06,23.776884]
[1736704809370,8.72015202,190.11,190.08,23.776884]
[1736704810068,8.72015202,190.1,190.08,23.776884]
[1736704810271,8.72015202,190.09,190.07,80.7]
[1736704810470,8.72015202,190.08,190.07,80.7]
[1736704811684,20.0,190.13,190.08,23.776884]
[1736704811855,8.72015202,190.1,190.08,23.776884]
[1736704812182,8.72015202,190.09,190.07,80.7]
[1736704812380,8.72015202,190.08,190.07,80.7]
[1736704812576,8.72015202,190.08,190.07,104.476884]
[1736704813181,8.72015202,190.09,190.07,104.476884]
[1736704813370,8.72015202,190.1,190.07,104.476884]
[1736704813564,8.72015202,190.1,190.08,23.776884]
[1736704813766,8.72015202,190.12,190.08,23.776884]
[1736704814084,1.6139,190.14,190.08,23.776884]
[1736704814085,8.72015202,190.09,190.08,23.776884]
[1736704814473,8.72015202,190.09,190.07,80.7]
[1736704814782,8.72015202,190.08,190.07,104.476884]
[1736704815486,20.0,190.13,190.07,104.476884]
[1736704815672,8.72015202,190.1,190.07,104.476884]
[1736704815980,8.72015202,190.11,190.07,104.476884]
[1736704817061,8.72015202,190.09,190.07,104.476884]
[1736704817699,8.72015202,190.1,190.07,104.476884]
[1736704819202,1.6139,190.14,190.08,23.776884]
[1736704819398,8.72015202,190.12,190.08,23.776884]
[1736704821509,1.6139,190.14,190.08,23.776884]
[1736704821892,0.7907314,190.18,190.1,8.72015202]
[1736704822088,0.7907314,190.18,190.1,89.42015202]
[1736704822279,0.7907314,190.18,190.11,113.19703602]
[1736704822485,1.6437,190.19,190.11,113.19703602]
[1736704822486,8.72015202,190.17,190.11,113.19703602]
[1736704823411,8.72015202,190.18,190.13,32.49703602]
[1736704824109,1.6437,190.24,190.15,23.776884]
[1736704824295,8.72015202,190.2,190.15,23.776884]
[1736704826090,8.72015202,190.16,190.13,80.7]
[1736704826601,8.72015202,190.16,190.14,23.776884]
[1736704826806,8.72015202,190.19,190.14,23.776884]
[1736704827112,8.72015202,190.19,190.14,32.49703602]
[1736704828533,8.72015202,190.18,190.14,23.776884]
[1736704831789,20.0,190.22,190.15,8.84564202]
[1736704832013,8.72015202,190.2,190.15,0.12549]
[1736704832391,8.72015202,190.19,190.15,0.12549]
[1736704834323,8.72015202,190.2,190.15,0.12549]
[1736704835910,8.72015202,190.19,190.15,0.12549]
[1736704836428,8.72015202,190.19,190.16,23.776884]
[1736704838425,8.72015202,190.2,190.16,23.776884]
[1736704841124,8.72015202,190.19,190.16,23.776884]
[1736704842317,8.72015202,190.19,190.16,104.476884]
[1736704843425,8.72015202,190.2,190.16,104.476884]
[1736704846627,0.7907314,190.26,190.18,104.476884]
[1736704846835,88.3477,190.29,190.2,23.776884]
[1736704846836,0.7907314,190.28,190.2,23.776884]
[1736704847011,8.72015202,190.25,190.2,23.776884]
[1736704847334,8.72015202,190.25,190.2,32.49703602]
[1736704848332,0.7907314,190.28,190.2,32.49703602]
[1736704848538,8.72015202,190.27,190.22,23.776884]
[1736704848912,0.7907314,190.29,190.21,23.776884]
[1736704849113,8.72015202,190.3,190.24,8.72015202]
[1736704849318,0.7907314,190.33,190.25,23.776884]
[1736704849521,28.72015202,190.31,190.25,32.49703602]
[1736704850117,8.72015202,190.32,190.27,23.902374]
[1736704850322,8.72015202,190.33,190.29,23.776884]
[1736704850727,0.7907314,190.38,190.29,23.776884]
[1736704851044,8.72015202,190.36,190.31,23.776884]
[1736704851807,20.0,190.39,190.31,23.776884]
[1736704852020,8.72015202,190.36,190.31,23.776884]
[1736704852228,8.72015202,190.35,190.3,23.902374]
[1736704852534,8.72015202,190.34,190.3,239.002374]
[1736704857440,8.72015202,190.34,190.3,104.602374]
[1736704857735,8.72015202,190.32,190.3,80.7]
[1736704857935,0.7907314,190.36,190.3,80.7]
[1736704857936,8.72015202,190.31,190.3,80.7]
[1736704859527,8.72015202,190.31,190.3,104.476884]
[1736704860239,8.72015202,190.31,190.24,0.25098]
[1736704860240,8.72015202,190.31,190.24,80.7]
[1736704860445,8.72015202,190.26,190.24,80.7]
[1736704860830,8.72015202,190.27,190.24,80.7]
[1736704861432,2.4083314,190.34,190.25,104.476884]
[1736704861633,8.72015202,190.3,190.26,0.12549]
[1736704862223,8.72015202,190.32,190.27,23.776884]
[1736704864245,8.72015202,190.31,190.27,23.776884]
[1736704866345,8.72015202,190.31,190.27,104.476884]
[1736704867123,8.72015202,190.32,190.27,104.476884]
[1736704867947,8.72015202,190.34,190.29,23.776884]
[1736704868948,20.0,190.36,190.29,8.72015202]
[1736704869130,1.6176,190.39,190.31,89.42015202]
[1736704869332,8.72015202,190.37,190.32,104.476884]
[1736704869750,8.72015202,190.36,190.32,104.476884]
[1736704869951,8.72015202,190.35,190.32,104.476884]
[1736704870249,8.72015202,190.36,190.32,104.476884]
[1736704871544,20.0,190.39,190.32,104.476884]
[1736704871766,28.72015202,190.39,190.34,23.776884]
[1736704872055,8.72015202,190.37,190.34,104.476884]
[1736704873029,8.72015202,190.38,190.34,104.476884]
[1736704873229,8.72015202,190.41,190.36,23.776884]
[1736704873427,8.72015202,190.42,190.36,32.49703602]
[1736704873937,8.72015202,190.39,190.36,23.776884]
[1736704876844,8.72015202,190.37,190.35,80.7]
[1736704877028,8.72015202,190.36,190.35,80.7]
[1736704877228,8.72015202,190.36,190.35,104.476884]
[1736704877436,8.72015202,190.36,190.29,85.14]
[1736704877656,8.72015202,190.31,190.29,85.14]
[1736704878470,8.72015202,190.3,190.26,215.1]
[1736704878671,5.7907314,190.39,190.26,215.1]
[1736704878672,8.72015202,190.28,190.26,80.7]
[1736704879060,8.72015202,190.28,190.27,23.776884]
[1736704879236,8.72015202,190.29,190.27,23.776884]
[1736704879432,8.72015202,190.28,190.27,23.776884]
[1736704879974,8.72015202,190.28,190.26,80.7]
[1736704880659,8.72015202,190.28,190.27,23.776884]
[1736704881355,8.72015202,190.29,190.26,23.776884]
[1736704882555,8.72015202,190.27,190.23,80.82549]
[1736704882737,8.72015202,190.26,190.23,80.82549]
[1736704882937,8.72015202,190.26,190.24,23.776884]
[1736704883633,8.72015202,190.25,190.23,80.7]
[1736704883948,8.72015202,190.24,190.23,104.476884]
[1736704884952,8.72015202,190.25,190.23,104.476884]
[1736704885149,8.72015202,190.26,190.23,104.476884]
[1736704885739,8.72015202,190.26,190.24,23.776884]
[1736704885948,8.72015202,190.27,190.24,23.776884]
[1736704887080,8.72015202,190.28,190.24,23.776884]
[1736704887679,8.72015202,190.25,190.24,23.776884]
[1736704889448,8.72015202,190.25,190.23,80.7]
[1736704889657,8.72015202,190.24,190.23,80.7]
[1736704890471,8.72015202,190.25,190.2,23.776884]
[1736704892152,8.72015202,190.26,190.2,113.19703602]
[1736704897173,8.72015202,190.25,190.2,104.476884]
[1736704901676,8.72015202,190.23,190.2,104.476884]
[1736704901860,8.72015202,190.22,190.2,104.476884]
[1736704902051,8.72015202,190.21,190.2,104.476884]
[1736704902467,1.5601,190.27,190.2,104.476884]
[1736704902759,8.72015202,190.23,190.2,104.476884]
[1736704903475,8.72015202,190.21,190.15,80.7]
[1736704903776,8.72015202,190.24,190.18,32.62252602]
[1736704904166,2.3508314,190.27,190.2,23.776884]
[1736704904167,8.72015202,190.25,190.2,23.776884]
[1736704904363,8.72015202,190.24,190.2,23.776884]
[1736704904564,8.72015202,190.23,190.2,23.776884]
[1736704905570,8.72015202,190.22,190.2,23.776884]
[1736704905778,8.72015202,190.21,190.19,80.7]
[1736704907979,8.72015202,190.2,190.19,104.476884]
[1736704908861,8.72015202,190.2,190.19,80.7]
[1736704910068,8.72015202,190.2,190.16,23.776884]
[1736704910273,8.72015202,190.17,190.15,80.7]
[1736704910580,8.72015202,190.16,190.15,80.7]
[1736704912068,8.72015202,190.16,190.11,80.7]
[1736704912271,1.6493,190.19,190.11,80.7]
[1736704912272,8.72015202,190.13,190.11,80.7]
[1736704912467,8.72015202,190.14,190.12,23.776884]
[1736704913975,8.72015202,190.15,190.12,23.776884]
[1736704914287,8.72015202,190.16,190.12,23.776884]
[1736704914783,8.72015202,190.17,190.12,23.776884]
[1736704915896,0.7907314,190.21,190.12,113.19703602]
[1736704916187,8.72015202,190.18,190.12,113.19703602]
[1736704916385,8.72015202,190.17,190.12,104.476884]
[1736704916768,8.72015202,190.18,190.12,113.19703602]
[1736704916968,8.72015202,190.17,190.12,104.476884]
[1736704917191,8.72015202,190.17,190.12,113.19703602]
[1736704917370,8.72015202,190.18,190.12,113.19703602]
[1736704917977,8.72015202,190.17,190.12,113.19703602]
[1736704919990,8.72015202,190.18,190.12,113.19703602]
[1736704921990,8.72015202,190.2,190.14,32.49703602]
[1736704922375,8.72015202,190.19,190.13,32.62252602]
[1736704922898,8.72015202,190.18,190.13,32.62252602]
[1736704923277,8.72015202,190.18,190.13,247.72252602]
[1736704923989,8.72015202,190.18,190.13,239.002374]
[1736704926198,0.7907314,190.23,190.14,8.72015202]
[1736704926403,8.72015202,190.19,190.15,23.776884]
[1736704926589,8.72015202,190.18,190.15,104.476884]
[1736704927777,8.72015202,190.16,190.15,104.476884]
[1736704928880,8.72015202,190.16,190.15,80.7]
[1736704931403,8.72015202,190.16,190.11,80.7]
[1736704931609,8.72015202,190.13,190.11,80.7]
[1736704932106,8.72015202,190.13,190.12,23.776884]
[1736704933311,8.72015202,190.13,190.08,215.1]
[1736704933617,8.72015202,190.1,190.08,80.7]
[1736704933794,8.72015202,190.13,190.09,104.476884]
[1736704933991,8.72015202,190.14,190.09,104.476884]
[1736704934902,8.72015202,190.13,190.09,104.476884]
[1736704935082,8.72015202,190.12,190.09,104.476884]
[1736704941212,8.72015202,190.13,190.09,104.476884]
[1736704941409,2.4400314,190.19,190.11,23.776884]
[1736704941612,8.72015202,190.15,190.11,104.476884]
[1736704942807,8.72015202,190.14,190.11,104.476884]
[1736704945087,8.72015202,190.15,190.11,104.476884]
[1736704946412,8.72015202,190.17,190.11,113.19703602]
[1736704946613,20.0,190.21,190.13,23.776884]
[1736704946918,8.72015202,190.18,190.13,23.776884]
[1736704947211,20.0,190.21,190.12,23.902374]
[1736704947212,8.72015202,190.17,190.12,23.902374]
[1736704947421,8.72015202,190.16,190.12,23.902374]
[1736704948301,8.72015202,190.15,190.12,104.476884]
[1736704948502,8.72015202,190.14,190.12,104.476884]
[1736704951827,8.72015202,190.13,190.12,104.476884]
[1736704953524,8.72015202,190.13,190.08,80.7]
[1736704953714,8.72015202,190.09,190.08,80.7]
[1736704954108,2.4363314,190.16,190.08,80.7]
[1736704954109,8.72015202,190.1,190.09,23.776884]
[1736704954424,8.72015202,190.11,190.09,23.776884]
[1736704956430,8.72015202,190.1,190.09,23.776884]
[1736704962115,8.72015202,190.11,190.09,23.776884]
[1736704962924,8.72015202,190.12,190.09,23.776884]
[1736704963128,20.0,190.16,190.09,113.19703602]
[1736704963314,8.72015202,190.15,190.09,113.19703602]
[1736704964526,8.72015202,190.13,190.09,104.476884]
[1736704965229,8.72015202,190.12,190.09,104.476884]
[1736704968737,8.72015202,190.1,190.09,104.476884]
[1736704968910,8.72015202,190.1,190.06,215.1]
[1736704969112,8.72015202,190.08,190.06,80.7]
[1736704969721,8.72015202,190.08,190.07,23.776884]
[1736704973557,8.72015202,190.08,190.06,80.7]
[1736704973712,8.72015202,190.07,190.06,80.7]
[1736704974124,8.72015202,190.07,190.02,80.7]
[1736704974423,8.72015202,190.03,190.02,80.7]
[1736704975436,8.72015202,190.03,190.02,104.476884]
[1736704976830,8.61601682,190.03,190.02,104.476884]
[1736704977809,20.0,190.07,190.02,104.476884]
[1736704978016,8.72015202,190.05,190.02,104.476884]
[1736704978740,8.72015202,190.04,190.02,104.476884]
[1736704979413,8.72015202,190.03,190.02,104.476884]
[1736704979611,8.72015202,190.03,189.98,80.82549]
[1736704979852,8.72015202,190.02,189.99,23.776884]
[1736704981040,8.72015202,190.0,189.99,23.776884]
[1736704981242,8.72015202,190.0,189.95,0.12549]
[1736704981418,8.72015202,189.98,189.92,8.72015202]
[1736704981622,8.72015202,189.98,189.93,23.902374]
[1736704981818,8.72015202,189.99,189.93,8.84564202]
[1736704982036,8.72015202,190.01,189.95,8.84564202]
[1736704982221,8.72015202,190.02,189.96,8.72015202]
[1736704982939,0.7907314,190.06,189.99,23.776884]
[1736704983131,8.72015202,190.04,189.99,23.776884]
[1736704983323,8.72015202,190.03,189.99,23.776884]
[1736704988254,8.72015202,190.03,189.97,8.84564202]
[1736704988760,8.72015202,190.03,189.99,23.776884]
[1736704990060,8.72015202,190.03,189.98,8.72015202]
[1736704990061,8.72015202,190.03,189.97,8.84564202]
[1736704990642,8.72015202,190.03,189.99,23.776884]
[1736704991261,8.72015202,190.06,190.01,23.776884]
[1736704991560,8.72015202,190.06,190.01,22.776884]
[1736704994678,8.72015202,190.06,190.01,8.72015202]
[1736704996152,8.72015202,190.06,190.01,23.776884]
[1736704996476,8.72015202,190.05,189.99,8.84564202]
[1736704996646,8.72015202,190.04,190.0,23.776884]
[1736704999672,8.72015202,190.05,190.0,23.776884]
[1736705001768,8.72015202,190.04,190.0,23.776884]
[1736705004378,8.72015202,190.02,189.97,89.42015202]
[1736705004979,8.72015202,190.02,189.98,23.902374]
[1736705005184,8.72015202,190.0,189.91,246.7254]
[1736705005473,6.375,190.04,189.95,32.62252602]
[1736705005474,8.72015202,190.01,189.95,32.62252602]
[1736705009261,8.72015202,190.01,189.97,23.776884]
[1736705009456,2.4300314,190.07,189.99,23.776884]
[1736705009658,8.72015202,190.05,190.0,0.12549]
[1736705011358,1.6393,190.07,190.01,23.776884]
[1736705011564,2.3442314,190.11,190.05,23.776884]
[1736705011780,10.27365202,190.11,190.07,23.776884]
[1736705011987,1.5535,190.11,190.07,23.776884]
[1736705012481,10.27365202,190.11,190.07,23.776884]
[1736705012781,1.5535,190.11,190.07,23.776884]
[1736705012989,10.27365202,190.11,190.07,23.776884]
[1736705013191,10.27365202,190.11,190.05,8.72015202]
[1736705013556,1.5535,190.11,190.05,8.72015202]
[1736705013762,10.27365202,190.11,190.05,8.72015202]
[1736705014578,10.27365202,190.11,190.04,0.12549]
[1736705014766,10.27365202,190.11,190.05,8.72015202]
[1736705018469,6.5699,190.15,190.07,23.776884]
[1736705018667,8.72015202,190.13,190.07,32.49703602]
[1736705018863,8.72015202,190.13,190.08,0.12549]
[1736705020064,8.72015202,190.14,190.09,23.776884]
[1736705020373,8.72015202,190.15,190.09,32.49703602]
[1736705022401,8.72015202,190.14,190.09,23.776884]
[1736705022767,1.5571,190.16,190.08,8.84564202]
[1736705022768,8.72015202,190.13,190.08,0.12549]
[1736705028290,8.72015202,190.14,190.08,8.84564202]
[1736705028499,8.72015202,190.14,190.09,23.902374]
[1736705033205,8.72015202,190.15,190.09,8.84564202]
[1736705034681,10.27725202,190.16,190.11,8.84564202]
[1736705034887,8.72015202,190.17,190.11,8.84564202]
[1736705035097,6.4579,190.19,190.13,23.776884]
[1736705035098,8.72015202,190.18,190.13,23.776884]
[1736705035492,8.72015202,190.16,190.1,32.74801602]
[1736705037591,8.72015202,190.15,190.1,32.74801602]
[1736705040106,8.72015202,190.16,190.1,32.74801602]
[1736705040811,8.72015202,190.14,190.1,239.002374]
[1736705041503,8.72015202,190.12,190.1,238.876884]
[1736705043512,8.72015202,190.14,190.1,238.876884]
[1736705043691,20.0,190.17,190.1,238.876884]
[1736705043884,35.67133948,190.2,190.11,8.84564202]
[1736705043885,8.72015202,190.16,190.11,8.84564202]
[1736705044104,8.72015202,190.17,190.12,23.776884]
[1736705044706,2.3192314,190.21,190.12,32.49703602]
[1736705044707,8.72015202,190.18,190.12,32.49703602]
[1736705044917,8.72015202,190.18,190.12,113.19703602]
[1736705045314,2.3192314,190.21,190.12,113.19703602]
[1736705045506,20.0,190.2,190.12,113.19703602]
[1736705045710,8.72015202,190.18,190.12,113.19703602]
[1736705046508,8.72015202,190.18,190.13,80.82549]
[1736705046698,8.72015202,190.19,190.14,23.776884]
[1736705048913,8.72015202,190.18,190.14,23.776884]
[1736705049908,8.72015202,190.16,190.14,23.776884]
[1736705050088,8.72015202,190.15,190.14,23.776884]
[1736705050607,8.72015202,190.15,190.1,80.7]
[1736705051210,8.72015202,190.18,190.12,8.72015202]
[1736705052513,8.72015202,190.18,190.13,0.12549]
[1736705052703,28.72015202,190.19,190.14,23.776884]
[1736705052909,8.72015202,190.19,190.14,104.476884]
[1736705053409,8.72015202,190.18,190.14,104.476884]
[1736705054009,20.0,190.2,190.14,104.476884]
[1736705054010,8.72015202,190.17,190.14,104.476884]
[1736705055817,8.72015202,190.15,190.14,104.476884]
[1736705057917,8.72015202,190.15,190.11,215.1]
[1736705058104,8.72015202,190.12,190.11,80.7]
[1736705058308,8.72015202,190.12,190.11,104.476884]
[1736705058806,8.72015202,190.12,190.11,80.7]
[1736705059117,8.72015202,190.12,190.07,80.7]
[1736705059314,8.72015202,190.08,190.07,23.776884]
[1736705060016,8.72015202,190.08,190.03,80.82549]
[1736705060317,8.72015202,190.05,190.03,80.7]
[1736705060816,8.72015202,190.05,190.04,23.776884]
[1736705061728,8.72015202,190.07,190.04,23.776884]
[1736705062999,81.5907314,190.14,190.04,104.476884]
[1736705063200,8.72015202,190.08,190.04,104.476884]
[1736705063399,8.72015202,190.07,190.04,104.476884]
[1736705066728,8.72015202,190.08,190.04,104.476884]
[1736705069144,8.72015202,190.09,190.04,113.19703602]
[1736705070140,0.7907314,190.14,190.05,0.12549]
[1736705070430,8.72015202,190.17,190.12,23.776884]
[1736705071209,8.72015202,190.19,190.12,8.72015202]
[1736705071426,0.7907314,190.23,190.14,113.19703602]
[1736705071628,8.72015202,190.21,190.16,23.776884]
[1736705072318,8.72015202,190.2,190.15,23.776884]
[1736705073131,8.72015202,190.2,190.15,104.476884]
[1736705073633,8.72015202,190.21,190.15,113.19703602]
[1736705073937,0.7907314,190.24,190.15,113.19703602]
[1736705073938,8.72015202,190.22,190.16,8.72015202]
[1736705079241,8.72015202,190.21,190.16,0.12549]
[1736705080739,8.72015202,190.2,190.16,0.12549]
[1736705088030,8.72015202,190.2,190.17,23.776884]
[1736705088747,8.72015202,190.19,190.17,23.776884]
[1736705088941,8.72015202,190.18,190.17,23.776884]
[1736705089245,8.72015202,190.19,190.17,23.776884]
[1736705100854,8.72015202,190.2,190.17,23.776884]
[1736705102353,8.72015202,190.19,190.17,23.776884]
[1736705102955,8.72015202,190.18,190.17,23.776884]
[1736705104631,8.72015202,190.19,190.17,23.776884]
[1736705104834,20.0,190.22,190.17,23.776884]
[1736705105034,0.7907314,190.24,190.17,104.476884]
[1736705105257,0.7907314,190.29,190.19,104.476884]
[1736705105463,8.72015202,190.24,190.19,104.476884]
[1736705106233,8.72015202,190.23,190.19,104.476884]
[1736705107039,8.72015202,190.24,190.19,104.476884]
[1736705107939,8.72015202,190.23,190.19,104.476884]
[1736705108351,8.72015202,190.24,190.19,104.476884]
[1736705109136,0.7907314,190.29,190.21,23.776884]
[1736705109339,10.0,190.35,190.23,23.776884]
[1736705109340,8.72015202,190.28,190.23,23.776884]
[1736705109662,8.72015202,190.29,190.23,8.72015202]
[1736705110247,8.72015202,190.28,190.22,113.32252602]
[1736705110639,8.72015202,190.28,190.23,8.72015202]
[1736705110840,8.72015202,190.3,190.24,32.49703602]
[1736705112760,8.72015202,190.29,190.24,104.476884]
[1736705114363,8.72015202,190.26,190.24,104.476884]
[1736705114561,8.72015202,190.25,190.24,104.476884]
[1736705115043,8.72015202,190.26,190.24,104.476884]
[1736705116763,8.72015202,190.25,190.24,80.7]
[1736705117343,20.7907314,190.29,190.19,32.62252602]
[1736705117542,8.72015202,190.25,190.19,113.32252602]
[1736705118243,8.72015202,190.25,190.21,23.776884]
[1736705118444,8.72015202,190.24,190.21,104.476884]
[1736705119053,8.72015202,190.25,190.21,104.476884]
[1736705119642,8.72015202,190.24,190.22,3.92229571]
[1736705120165,0.7907314,190.29,190.22,27.69917971]
[1736705120166,8.72015202,190.23,190.22,27.69917971]
[1736705120758,8.72015202,190.23,190.22,23.776884]
[1736705122350,8.72015202,190.24,190.22,23.776884]
[1736705122750,22.3910314,190.29,190.22,23.776884]
[1736705122970,8.72015202,190.25,190.22,23.776884]
[1736705123568,8.72015202,190.25,190.23,23.776884]
[1736705123776,8.72015202,190.25,190.22,23.776884]
[1736705125196,20.0,190.29,190.22,104.476884]
[1736705125473,8.72015202,190.29,190.25,23.776884]
[1736705126463,8.72015202,190.32,190.27,23.776884]
[1736705126670,8.72015202,190.31,190.27,23.776884]
[1736705129354,8.72015202,190.3,190.27,104.476884]
[1736705129982,8.72015202,190.31,190.27,104.476884]
[1736705130872,8.72015202,190.32,190.27,104.476884]
[1736705131772,8.72015202,190.31,190.27,104.476884]
[1736705131947,8.72015202,190.3,190.27,104.476884]
[1736705135249,8.72015202,190.29,190.27,104.476884]
[1736705135455,8.72015202,190.28,190.27,80.7]
[1736705135675,8.72015202,190.28,190.27,104.476884]
[1736705137385,8.72015202,190.29,190.28,23.776884]
[1736705139380,8.72015202,190.29,190.27,80.7]
[1736705139580,8.72015202,190.28,190.23,82.2703]
[1736705139768,8.72015202,190.27,190.23,82.2703]
[1736705139971,8.72015202,190.26,190.24,23.776884]
[1736705140568,20.0,190.33,190.26,23.776884]
[1736705140775,20.0,190.33,190.27,23.776884]
[1736705140776,8.72015202,190.32,190.27,23.776884]
[1736705140979,8.72015202,190.31,190.27,23.776884]
[1736705141180,20.0,190.33,190.27,23.776884]
[1736705141370,8.72015202,190.31,190.27,23.776884]
[1736705142059,8.72015202,190.32,190.27,23.776884]
[1736705143392,8.72015202,190.31,190.27,104.476884]
[1736705145074,8.72015202,190.32,190.27,104.476884]
[1736705146076,8.72015202,190.31,190.27,104.476884]
[1736705147064,8.72015202,190.28,190.27,104.476884]
[1736705149884,8.72015202,190.28,190.27,80.7]
[1736705150889,8.72015202,190.28,190.25,23.776884]
[1736705151190,8.72015202,190.26,190.25,23.776884]
[1736705153366,8.72015202,190.26,190.24,80.7]
[1736705153595,8.72015202,190.25,190.24,80.7]
[1736705154404,8.72015202,190.25,190.24,104.476884]
[1736705154705,8.72015202,190.25,190.24,108.40045393]
[1736705156172,8.72015202,190.25,190.24,104.476884]
[1736705158871,8.72015202,190.25,190.24,80.7]
[1736705159081,8.72015202,190.25,190.18,80.7]
[1736705159388,8.72015202,190.21,190.19,23.776884]
[1736705160487,8.72015202,190.2,190.19,23.776884]
[1736705160693,0.7907314,190.28,190.19,23.776884]
[1736705160694,8.72015202,190.21,190.19,23.776884]
[1736705161792,8.72015202,190.2,190.19,23.776884]
[1736705162899,8.72015202,190.2,190.19,27.70292898]
[1736705167094,8.72015202,190.2,190.19,3.92604498]
[1736705167482,8.72015202,190.2,190.18,80.7]
[1736705167684,8.72015202,190.19,190.17,23.776884]
[1736705168680,8.72015202,190.19,190.14,23.902374]
[1736705169695,8.72015202,190.19,190.16,23.776884]